[Event "GrandPrix_29.05"]
[Site "Chess.com"]
[Date "2020.05.29"]
[Round "8"]
[White "KruHor"]
[Black "Meizon19"]
[Result "1-0"]
[WhiteElo "2487"]
[BlackElo "2311"]
[TimeControl "600+2"]
[EndTime "13:03:51 PDT"]
[Termination "KruHor won by resignation"]

1. c4 {[%clk 0:09:57.9]} 1... Nf6 {[%clk 0:10:00.4]} 2. Nc3 {[%clk 0:09:55.7]}
2... g6 {[%clk 0:10:00.8]} 3. d4 {[%clk 0:09:54.8]} 3... Bg7 {[%clk 0:10:01.2]}
4. e4 {[%clk 0:09:55]} 4... d6 {[%clk 0:10:02.2]} 5. Be2 {[%clk 0:09:54.9]} 5...
O-O {[%clk 0:10:02.2]} 6. Be3 {[%clk 0:09:51.7]} 6... Nbd7 {[%clk 0:09:46.7]} 7.
Nf3 {[%clk 0:09:45.9]} 7... e5 {[%clk 0:09:41.4]} 8. d5 {[%clk 0:09:46.2]} 8...
a5 {[%clk 0:09:35.2]} 9. Nd2 {[%clk 0:09:38.2]} 9... Nc5 {[%clk 0:09:31.9]} 10.
a3 {[%clk 0:09:28.5]} 10... Ne8 {[%clk 0:09:17.9]} 11. b4 {[%clk 0:09:27.5]}
11... Nd7 {[%clk 0:09:19.1]} 12. c5 {[%clk 0:09:07]} 12... f5 {[%clk 0:09:18.7]}
13. c6 {[%clk 0:08:59.9]} 13... Ndf6 {[%clk 0:09:15.6]} 14. cxb7 {[%clk
0:08:52.9]} 14... Bxb7 {[%clk 0:09:16]} 15. f3 {[%clk 0:08:45.4]} 15... c6
{[%clk 0:09:13.3]} 16. dxc6 {[%clk 0:08:43.8]} 16... Bxc6 {[%clk 0:09:14.3]} 17.
O-O {[%clk 0:08:40.1]} 17... d5 {[%clk 0:08:55.6]} 18. exd5 {[%clk 0:07:49.7]}
18... Nxd5 {[%clk 0:08:56.1]} 19. Bc4 {[%clk 0:07:37.7]} 19... Kh8 {[%clk
0:08:54.1]} 20. Bxd5 {[%clk 0:07:35.3]} 20... Bxd5 {[%clk 0:08:55.1]} 21. Nxd5
{[%clk 0:07:17.3]} 21... Qxd5 {[%clk 0:08:55.6]} 22. Nb3 {[%clk 0:07:06.8]}
22... Qxd1 {[%clk 0:08:47.7]} 23. Rfxd1 {[%clk 0:07:07]} 23... axb4 {[%clk
0:08:43.5]} 24. axb4 {[%clk 0:07:07.2]} 24... Rb8 {[%clk 0:08:15.4]} 25. Bc5
{[%clk 0:07:02.6]} 25... Rf7 {[%clk 0:08:12.7]} 26. Ra6 {[%clk 0:06:42.1]} 26...
Kg8 {[%clk 0:07:23.9]} 27. Na5 {[%clk 0:06:35.9]} 27... Nc7 {[%clk 0:07:04.6]}
28. Rad6 {[%clk 0:05:51.3]} 28... Bf8 {[%clk 0:06:54.6]} 29. Rd8 {[%clk
0:05:30.1]} 29... Rxd8 {[%clk 0:06:53.6]} 30. Rxd8 {[%clk 0:05:30]} 30... Ne6
{[%clk 0:06:53.4]} 31. Re8 {[%clk 0:05:14.1]} 31... Nxc5 {[%clk 0:06:49.8]} 32.
bxc5 {[%clk 0:05:14.3]} 32... Ra7 {[%clk 0:05:39]} 33. Nc6 {[%clk 0:04:55.8]}
33... Ra1+ {[%clk 0:05:21.8]} 34. Kf2 {[%clk 0:04:56.2]} 34... Kf7 {[%clk
0:05:05.3]} 35. Rxe5 {[%clk 0:04:52.8]} 35... Kf6 {[%clk 0:04:39.6]} 36. f4
{[%clk 0:03:35.9]} 36... Ra2+ {[%clk 0:04:12.3]} 37. Kf1 {[%clk 0:03:33.4]}
37... Ra1+ {[%clk 0:04:13.2]} 38. Kf2 {[%clk 0:03:33.9]} 38... Ra2+ {[%clk
0:04:14.2]} 39. Kf3 {[%clk 0:03:22.8]} 39... Ra3+ {[%clk 0:04:12.9]} 40. Ke2
{[%clk 0:03:23.7]} 40... Rc3 {[%clk 0:03:44.7]} 41. Nb8 {[%clk 0:03:21.9]} 41...
Kf7 {[%clk 0:03:44.9]} 42. Nd7 {[%clk 0:03:13.2]} 42... Bg7 {[%clk 0:02:50.9]}
43. Re3 {[%clk 0:03:04.9]} 43... Rc2+ {[%clk 0:02:04.8]} 44. Kd3 {[%clk
0:03:03.2]} 44... Rc1 {[%clk 0:01:58.7]} 45. Kd2 {[%clk 0:02:51.1]} 45... Rc4
{[%clk 0:01:48.3]} 46. g3 {[%clk 0:02:51.3]} 46... Rd4+ {[%clk 0:01:43.2]} 47.
Rd3 {[%clk 0:02:51.9]} 47... Ke6 {[%clk 0:01:39.1]} 48. Nb6 {[%clk 0:02:23]}
48... Bf6 {[%clk 0:01:39.7]} 49. c6 {[%clk 0:02:14.1]} 49... Rxd3+ {[%clk
0:01:15.1]} 50. Kxd3 {[%clk 0:02:14.6]} 50... Bd8 {[%clk 0:01:16.3]} 51. Nd7
{[%clk 0:01:46.8]} 51... Kd6 {[%clk 0:01:14.8]} 52. Nf8 {[%clk 0:01:41.3]} 52...
Kxc6 {[%clk 0:01:09.7]} 53. Nxh7 {[%clk 0:01:42]} 53... Be7 {[%clk 0:01:09.6]}
54. Kd4 {[%clk 0:01:40.6]} 54... Kd6 {[%clk 0:01:09.6]} 55. h4 {[%clk
0:01:34.2]} 55... Bd8 {[%clk 0:01:05.6]} 56. Nf8 {[%clk 0:01:30.3]} 56... Bb6+
{[%clk 0:01:06.5]} 57. Kd3 {[%clk 0:01:17.9]} 57... Bf2 {[%clk 0:01:07.3]} 58.
Nxg6 {[%clk 0:01:18]} 58... Bxg3 {[%clk 0:01:08.3]} 59. h5 {[%clk 0:01:13.3]}
1-0

[Event "GrandPrix_29.05"]
[Site "Chess.com"]
[Date "2020.05.29"]
[Round "8"]
[White "ENajer77"]
[Black "iceboy88"]
[Result "1-0"]
[WhiteElo "2358"]
[BlackElo "2391"]
[TimeControl "600+2"]
[EndTime "13:03:53 PDT"]
[Termination "ENajer77 won by resignation"]

1. d4 {[%clk 0:10:00.3]} 1... Nf6 {[%clk 0:09:58.7]} 2. c4 {[%clk 0:10:00.3]}
2... e6 {[%clk 0:09:58.3]} 3. Nc3 {[%clk 0:09:59.8]} 3... Bb4 {[%clk 0:09:56.1]}
4. Nf3 {[%clk 0:10:00.2]} 4... d5 {[%clk 0:09:54.6]} 5. Qa4+ {[%clk 0:09:51.7]}
5... Nc6 {[%clk 0:09:54.6]} 6. Bd2 {[%clk 0:09:52]} 6... O-O {[%clk 0:09:47.4]}
7. e3 {[%clk 0:09:52.5]} 7... Bd7 {[%clk 0:08:53.6]} 8. Qc2 {[%clk 0:09:45.9]}
8... dxc4 {[%clk 0:08:32.5]} 9. Bxc4 {[%clk 0:09:44.5]} 9... Na5 {[%clk
0:08:13]} 10. Be2 {[%clk 0:09:11]} 10... c5 {[%clk 0:07:59.7]} 11. a3 {[%clk
0:09:09.6]} 11... Bxc3 {[%clk 0:07:58]} 12. Qxc3 {[%clk 0:08:03]} 12... b6
{[%clk 0:07:48.8]} 13. dxc5 {[%clk 0:08:00.4]} 13... Ne4 {[%clk 0:07:46.1]} 14.
Qc2 {[%clk 0:08:00.2]} 14... Nxd2 {[%clk 0:07:35]} 15. Nxd2 {[%clk 0:08:00.6]}
15... Rc8 {[%clk 0:06:04.4]} 16. b4 {[%clk 0:07:52.6]} 16... Nb7 {[%clk
0:06:02]} 17. Ba6 {[%clk 0:07:14.4]} 17... Bc6 {[%clk 0:04:58.1]} 18. O-O {[%clk
0:07:13.1]} 18... Qg5 {[%clk 0:04:12.4]} 19. e4 {[%clk 0:06:44.2]} 19... Rc7
{[%clk 0:03:48.1]} 20. cxb6 {[%clk 0:05:45.8]} 20... axb6 {[%clk 0:03:40.4]} 21.
b5 {[%clk 0:05:42.3]} 21... Nc5 {[%clk 0:02:52.4]} 22. bxc6 {[%clk 0:05:40.2]}
22... Nxa6 {[%clk 0:02:53.4]} 23. Rab1 {[%clk 0:05:33.7]} 23... Qa5 {[%clk
0:02:22.1]} 24. Nc4 {[%clk 0:04:22.5]} 24... Rxc6 {[%clk 0:01:26.2]} 25. Nxa5
{[%clk 0:03:32.4]} 25... Rxc2 {[%clk 0:01:27]} 26. Rxb6 {[%clk 0:03:33]} 26...
Ra8 {[%clk 0:01:04.8]} 27. Nb7 {[%clk 0:01:40.4]} 27... h6 {[%clk 0:00:34.6]}
28. a4 {[%clk 0:01:28.1]} 28... Nc5 {[%clk 0:00:24.5]} 29. Rc6 {[%clk 0:01:21]}
29... Nxb7 {[%clk 0:00:12.1]} 30. Rxc2 {[%clk 0:01:21.2]} 30... Rxa4 {[%clk
0:00:13.4]} 31. Rc8+ {[%clk 0:01:14.7]} 31... Kh7 {[%clk 0:00:13.4]} 32. Rc7
{[%clk 0:01:16.1]} 32... Nd6 {[%clk 0:00:13]} 33. e5 {[%clk 0:01:06.9]} 33...
Nc4 {[%clk 0:00:13.5]} 34. Rxf7 {[%clk 0:01:04.1]} 34... Nxe5 {[%clk 0:00:14.4]}
35. Re7 {[%clk 0:01:04.6]} 35... Ra6 {[%clk 0:00:08.8]} 36. Re1 {[%clk
0:00:59.5]} 36... Nd3 {[%clk 0:00:08.5]} 37. R7xe6 {[%clk 0:00:55.7]} 37... Ra5
{[%clk 0:00:09.9]} 38. Rd1 {[%clk 0:00:47.1]} 38... Nf4 {[%clk 0:00:07.1]} 39.
Re4 {[%clk 0:00:44.8]} 39... g5 {[%clk 0:00:06.5]} 40. g3 {[%clk 0:00:35.5]}
40... Nh5 {[%clk 0:00:04.4]} 41. Re6 {[%clk 0:00:28.5]} 41... Rf5 {[%clk
0:00:03.6]} 42. Rd7+ {[%clk 0:00:27.1]} 1-0

[Event "GrandPrix_29.05"]
[Site "Chess.com"]
[Date "2020.05.29"]
[Round "8"]
[White "Saqo007"]
[Black "VojtechPlat"]
[Result "0-1"]
[WhiteElo "2117"]
[BlackElo "2343"]
[TimeControl "600+2"]
[EndTime "13:03:56 PDT"]
[Termination "VojtechPlat won by resignation"]

1. d4 {[%clk 0:10:01.9]} 1... d6 {[%clk 0:10:00]} 2. Nf3 {[%clk 0:09:59.6]} 2...
Bg4 {[%clk 0:10:00]} 3. g3 {[%clk 0:09:54.4]} 3... c6 {[%clk 0:10:00.3]} 4. Bg2
{[%clk 0:09:54.9]} 4... Nd7 {[%clk 0:10:01]} 5. O-O {[%clk 0:09:46.5]} 5... Ngf6
{[%clk 0:10:01.1]} 6. h3 {[%clk 0:09:46.7]} 6... Bh5 {[%clk 0:10:00.6]} 7. g4
{[%clk 0:09:47.3]} 7... Bg6 {[%clk 0:10:01.3]} 8. Bf4 {[%clk 0:09:48.8]} 8... h5
{[%clk 0:09:55.1]} 9. g5 {[%clk 0:09:48.1]} 9... Nd5 {[%clk 0:09:52.3]} 10. Bh2
{[%clk 0:09:45]} 10... e6 {[%clk 0:09:48.7]} 11. h4 {[%clk 0:09:42.1]} 11... Qb6
{[%clk 0:09:18.1]} 12. Qc1 {[%clk 0:09:21.7]} 12... c5 {[%clk 0:09:08.3]} 13.
dxc5 {[%clk 0:07:55]} 13... Nxc5 {[%clk 0:09:03.1]} 14. c3 {[%clk 0:07:50.8]}
14... Rc8 {[%clk 0:08:41.5]} 15. b3 {[%clk 0:07:22.3]} 15... Be7 {[%clk
0:08:04.5]} 16. c4 {[%clk 0:06:47.7]} 16... Ne4 {[%clk 0:07:57.4]} 17. Qb2
{[%clk 0:06:38]} 17... Ndf6 {[%clk 0:07:50.7]} 18. Nbd2 {[%clk 0:06:18.2]} 18...
Nxd2 {[%clk 0:07:36.6]} 19. Nxd2 {[%clk 0:06:12.1]} 19... Ng4 {[%clk 0:07:35.1]}
20. Qxg7 {[%clk 0:06:08.4]} 20... Rh7 {[%clk 0:07:24.3]} 21. Qb2 {[%clk
0:05:53.2]} 21... f6 {[%clk 0:07:23.6]} 22. Bf4 {[%clk 0:05:17.7]} 22... e5
{[%clk 0:07:09.6]} 23. gxf6 {[%clk 0:05:04.7]} 23... Bxf6 {[%clk 0:07:05.2]} 24.
Bg5 {[%clk 0:05:05.5]} 24... Bxg5 {[%clk 0:06:42.7]} 25. hxg5 {[%clk 0:05:07.4]}
25... Rf7 {[%clk 0:06:35.9]} 26. Bf3 {[%clk 0:04:09.1]} 26... Qd8 {[%clk
0:06:32.5]} 27. Bd5 {[%clk 0:02:46.8]} 27... Rf5 {[%clk 0:05:19.2]} 28. f4
{[%clk 0:02:07.9]} 28... exf4 {[%clk 0:04:19.7]} 29. Qg7 {[%clk 0:01:45.7]}
29... Ne5 {[%clk 0:04:00.2]} 30. Qg8+ {[%clk 0:00:29.5]} 30... Kd7 {[%clk
0:03:59.9]} 31. Be6+ {[%clk 0:00:26.4]} 31... Ke7 {[%clk 0:03:58.7]} 32. Qxd8+
{[%clk 0:00:24.8]} 32... Rxd8 {[%clk 0:03:59.9]} 33. Bxf5 {[%clk 0:00:26.3]}
33... Bxf5 {[%clk 0:04:01]} 34. Nf3 {[%clk 0:00:27.9]} 34... Rg8 {[%clk
0:03:55.7]} 35. Kf2 {[%clk 0:00:28]} 35... Ng4+ {[%clk 0:03:47.1]} 36. Ke1
{[%clk 0:00:29]} 36... Ne3 {[%clk 0:03:46.8]} 37. Rh1 {[%clk 0:00:29.2]} 37...
Nc2+ {[%clk 0:03:46.5]} 38. Kd2 {[%clk 0:00:30.8]} 38... Nxa1 {[%clk 0:03:47.7]}
39. Rxa1 {[%clk 0:00:32.5]} 39... Bg4 {[%clk 0:03:48.8]} 40. Rg1 {[%clk
0:00:23.3]} 40... Ke6 {[%clk 0:03:33.2]} 41. Nd4+ {[%clk 0:00:18.5]} 41... Ke5
{[%clk 0:03:34.2]} 42. Kd3 {[%clk 0:00:19.5]} 42... a6 {[%clk 0:03:33.4]} 43. a4
{[%clk 0:00:18.7]} 43... d5 {[%clk 0:03:23.7]} 44. c5 {[%clk 0:00:16.1]} 44...
Bd7 {[%clk 0:03:17.9]} 45. Nf3+ {[%clk 0:00:12.8]} 45... Ke6 {[%clk 0:03:18.9]}
46. Kd4 {[%clk 0:00:14.7]} 46... Bc6 {[%clk 0:03:11]} 47. Ne5 {[%clk 0:00:16.1]}
47... Kf5 {[%clk 0:03:11]} 48. g6 {[%clk 0:00:17.1]} 48... Kf6 {[%clk
0:03:03.3]} 49. Rh1 {[%clk 0:00:17.3]} 49... Rh8 {[%clk 0:03:00.7]} 50. Rh4
{[%clk 0:00:17.5]} 50... Kg7 {[%clk 0:02:44.4]} 51. Rxf4 {[%clk 0:00:18]} 51...
Be8 {[%clk 0:02:44.8]} 52. Rf5 {[%clk 0:00:17.6]} 52... h4 {[%clk 0:02:45.3]}
53. Rf1 {[%clk 0:00:17.4]} 53... h3 {[%clk 0:02:45.2]} 54. Rh1 {[%clk
0:00:18.4]} 54... Rh5 {[%clk 0:02:40.5]} 55. Rh2 {[%clk 0:00:18.3]} 55... Bxg6
{[%clk 0:02:35.7]} 56. Nxg6 {[%clk 0:00:15.9]} 56... Kxg6 {[%clk 0:02:36.6]} 57.
b4 {[%clk 0:00:17.8]} 57... Kf6 {[%clk 0:02:35.7]} 58. b5 {[%clk 0:00:18.9]}
58... axb5 {[%clk 0:02:36.5]} 59. axb5 {[%clk 0:00:20.8]} 59... Ke6 {[%clk
0:02:37.6]} 60. c6 {[%clk 0:00:19.6]} 60... bxc6 {[%clk 0:02:37.2]} 61. bxc6
{[%clk 0:00:20.8]} 61... Kd6 {[%clk 0:02:38.3]} 62. e3 {[%clk 0:00:21.5]} 62...
Rh4+ {[%clk 0:02:38.6]} 63. Kd3 {[%clk 0:00:22]} 63... Kxc6 {[%clk 0:02:39.7]}
64. Ke2 {[%clk 0:00:23.5]} 64... Kd6 {[%clk 0:02:37.4]} 65. Kf3 {[%clk 0:00:25]}
65... Ke5 {[%clk 0:02:38.6]} 66. Kg3 {[%clk 0:00:26.2]} 66... Rh8 {[%clk
0:02:39.7]} 67. Kf3 {[%clk 0:00:24.7]} 67... Rh7 {[%clk 0:02:40.4]} 68. Kf2
{[%clk 0:00:20.5]} 68... Ke4 {[%clk 0:02:40.9]} 69. Ke2 {[%clk 0:00:21.9]} 69...
Rh8 {[%clk 0:02:39.9]} 70. Rh1 {[%clk 0:00:22.4]} 70... h2 {[%clk 0:02:40.6]}
71. Kf2 {[%clk 0:00:23.7]} 71... Rh7 {[%clk 0:02:40.1]} 72. Ke2 {[%clk
0:00:24.8]} 72... Ra7 {[%clk 0:02:39.5]} 73. Kf2 {[%clk 0:00:23.9]} 73... Ra2+
{[%clk 0:02:40.2]} 74. Kg3 {[%clk 0:00:23.8]} 74... Kxe3 {[%clk 0:02:41.3]} 75.
Re1+ {[%clk 0:00:24.9]} 75... Re2 {[%clk 0:02:42.3]} 76. Rd1 {[%clk 0:00:25.2]}
76... d4 {[%clk 0:02:43.3]} 77. Rf1 {[%clk 0:00:25.6]} 77... d3 {[%clk
0:02:42.6]} 0-1

[Event "GrandPrix_29.05"]
[Site "Chess.com"]
[Date "2020.05.29"]
[Round "8"]
[White "PlayChessSimple"]
[Black "Alex_Krayz"]
[Result "0-1"]
[WhiteElo "2189"]
[BlackElo "2176"]
[TimeControl "600+2"]
[EndTime "13:04:02 PDT"]
[Termination "Alex_Krayz won on time"]

1. e4 {[%clk 0:10:01.9]} 1... e6 {[%clk 0:09:59.9]} 2. d4 {[%clk 0:09:42.9]}
2... d5 {[%clk 0:09:58.7]} 3. e5 {[%clk 0:09:43.9]} 3... c5 {[%clk 0:09:58.3]}
4. c3 {[%clk 0:09:44.8]} 4... Nc6 {[%clk 0:09:59.1]} 5. Nf3 {[%clk 0:09:44.1]}
5... Bd7 {[%clk 0:09:59.9]} 6. Be2 {[%clk 0:09:39.8]} 6... f6 {[%clk 0:09:58.9]}
7. O-O {[%clk 0:09:39.8]} 7... fxe5 {[%clk 0:09:59.2]} 8. dxe5 {[%clk 0:09:41]}
8... Qc7 {[%clk 0:09:59.9]} 9. c4 {[%clk 0:09:37.8]} 9... d4 {[%clk 0:09:51.9]}
10. Re1 {[%clk 0:09:33.9]} 10... O-O-O {[%clk 0:09:48]} 11. Bd3 {[%clk
0:09:34.2]} 11... h6 {[%clk 0:09:45.4]} 12. Na3 {[%clk 0:09:34.6]} 12... a6
{[%clk 0:09:44.3]} 13. Bf4 {[%clk 0:09:27.1]} 13... g5 {[%clk 0:09:42.6]} 14.
Bg3 {[%clk 0:09:28.2]} 14... Bg7 {[%clk 0:09:40.1]} 15. Nc2 {[%clk 0:09:14.1]}
15... Nge7 {[%clk 0:09:32.2]} 16. b4 {[%clk 0:09:11.5]} 16... cxb4 {[%clk
0:09:17.5]} 17. Ncxd4 {[%clk 0:09:07.5]} 17... g4 {[%clk 0:08:37.7]} 18. Nxc6
{[%clk 0:08:56]} 18... Bxc6 {[%clk 0:08:29.4]} 19. Nh4 {[%clk 0:08:49.6]} 19...
Rd4 {[%clk 0:08:09.1]} 20. Qb3 {[%clk 0:07:31.1]} 20... Rhd8 {[%clk 0:08:05.2]}
21. Be2 {[%clk 0:07:31.8]} 21... Qa5 {[%clk 0:07:41.7]} 22. Qe3 {[%clk
0:06:21.7]} 22... Re4 {[%clk 0:07:12.3]} 23. Qc1 {[%clk 0:05:34.4]} 23... Qc5
{[%clk 0:06:03.9]} 24. Bf1 {[%clk 0:05:19.1]} 24... Rxe1 {[%clk 0:04:38.2]} 25.
Qxe1 {[%clk 0:05:21]} 25... Qd4 {[%clk 0:04:32]} 26. Rb1 {[%clk 0:05:04.5]}
26... Qc3 {[%clk 0:04:22.6]} 27. Qe2 {[%clk 0:04:08.2]} 27... h5 {[%clk
0:04:15.3]} 28. Rb3 {[%clk 0:04:06.7]} 28... Qc1 {[%clk 0:03:58.7]} 29. h3
{[%clk 0:03:29.1]} 29... Rd1 {[%clk 0:03:48.4]} 30. f3 {[%clk 0:02:35.8]} 30...
gxh3 {[%clk 0:03:23.6]} 31. gxh3 {[%clk 0:02:29.8]} 31... Bh6 {[%clk 0:03:17.2]}
32. Rd3 {[%clk 0:01:39.8]} 32... Rxd3 {[%clk 0:02:28.5]} 33. Qxd3 {[%clk
0:01:41.7]} 33... Qe3+ {[%clk 0:02:29.1]} 34. Qxe3 {[%clk 0:01:37.2]} 34...
Bxe3+ {[%clk 0:02:28.8]} 35. Bf2 {[%clk 0:01:39.1]} 35... Bf4 {[%clk 0:02:15.3]}
36. Bc5 {[%clk 0:01:30.6]} 36... Bg5 {[%clk 0:02:14.6]} 37. Ng2 {[%clk
0:01:22.1]} 37... Nf5 {[%clk 0:02:06.3]} 38. Bxb4 {[%clk 0:01:17.6]} 38... Bxf3
{[%clk 0:02:05.4]} 39. Bd3 {[%clk 0:01:14.8]} 39... h4 {[%clk 0:01:49]} 40. Kf2
{[%clk 0:01:07.3]} 40... Bc6 {[%clk 0:01:45]} 41. Be2 {[%clk 0:00:43.9]} 41...
Kd7 {[%clk 0:01:40.6]} 42. Bg4 {[%clk 0:00:36.1]} 42... Ng3 {[%clk 0:01:41.1]}
43. Ne3 {[%clk 0:00:28.4]} 43... Ne4+ {[%clk 0:01:33.1]} 44. Ke2 {[%clk
0:00:28.8]} 44... Bf4 {[%clk 0:01:30.7]} 45. Ng2 {[%clk 0:00:17]} 45... Bg3
{[%clk 0:01:27.9]} 46. Bf3 {[%clk 0:00:14.2]} 46... b6 {[%clk 0:01:13.2]} 47. a3
{[%clk 0:00:08.8]} 47... b5 {[%clk 0:01:09.8]} 48. cxb5 {[%clk 0:00:07.7]} 48...
Bxb5+ {[%clk 0:01:07.7]} 49. Ke3 {[%clk 0:00:08.2]} 49... Ng5 {[%clk 0:01:08.6]}
50. Bd6 {[%clk 0:00:06.5]} 50... Nxf3 {[%clk 0:01:00.5]} 51. Kxf3 {[%clk
0:00:05.5]} 51... Bc6+ {[%clk 0:01:00.6]} 0-1

[Event "GrandPrix_29.05"]
[Site "Chess.com"]
[Date "2020.05.29"]
[Round "8"]
[White "EvgenyPigusov"]
[Black "Winawer81"]
[Result "1-0"]
[WhiteElo "2304"]
[BlackElo "2151"]
[TimeControl "600+2"]
[EndTime "13:04:06 PDT"]
[Termination "EvgenyPigusov won by resignation"]

1. Nf3 {[%clk 0:10:01.9]} 1... Nf6 {[%clk 0:09:59.4]} 2. c4 {[%clk 0:10:02.4]}
2... b6 {[%clk 0:09:59.7]} 3. g3 {[%clk 0:10:03]} 3... Bb7 {[%clk 0:09:59.3]} 4.
Bg2 {[%clk 0:10:04.6]} 4... e6 {[%clk 0:09:59.5]} 5. O-O {[%clk 0:10:05.2]} 5...
Be7 {[%clk 0:09:59.8]} 6. Nc3 {[%clk 0:10:05.3]} 6... O-O {[%clk 0:09:59.8]} 7.
Re1 {[%clk 0:10:05.5]} 7... d5 {[%clk 0:10:00.5]} 8. cxd5 {[%clk 0:10:06.4]}
8... Nxd5 {[%clk 0:10:00.7]} 9. e4 {[%clk 0:10:05.3]} 9... Nxc3 {[%clk 0:10:01]}
10. bxc3 {[%clk 0:10:05.9]} 10... Nc6 {[%clk 0:10:01.1]} 11. d4 {[%clk
0:10:06.5]} 11... Na5 {[%clk 0:09:58.9]} 12. Ne5 {[%clk 0:09:56.9]} 12... Bd6
{[%clk 0:09:54.8]} 13. Bf4 {[%clk 0:09:43.1]} 13... Qe7 {[%clk 0:09:36.7]} 14.
h4 {[%clk 0:09:36.7]} 14... f6 {[%clk 0:09:23.1]} 15. Nd3 {[%clk 0:09:34.3]}
15... e5 {[%clk 0:09:18.6]} 16. Bc1 {[%clk 0:09:14.5]} 16... Rad8 {[%clk
0:09:03.9]} 17. a4 {[%clk 0:08:59]} 17... Kh8 {[%clk 0:08:43.5]} 18. Qc2 {[%clk
0:08:05]} 18... Rfe8 {[%clk 0:08:32.3]} 19. f4 {[%clk 0:07:33.5]} 19... exf4
{[%clk 0:07:30.8]} 20. gxf4 {[%clk 0:06:26.2]} 20... f5 {[%clk 0:06:39.4]} 21.
e5 {[%clk 0:06:15.7]} 21... Qxh4 {[%clk 0:06:37.7]} 22. Bxb7 {[%clk 0:05:13.6]}
22... Nxb7 {[%clk 0:06:35.9]} 23. Qg2 {[%clk 0:05:12.3]} 23... Bf8 {[%clk
0:06:19.2]} 24. Re3 {[%clk 0:04:56.6]} 24... Na5 {[%clk 0:05:47.6]} 25. Nf2
{[%clk 0:04:16.2]} 25... Qh5 {[%clk 0:05:00]} 26. Rh3 {[%clk 0:02:36.2]} 26...
Qe2 {[%clk 0:04:44.6]} 27. Qg6 {[%clk 0:02:12.6]} 27... h6 {[%clk 0:04:25.7]}
28. Ba3 {[%clk 0:02:01.8]} 28... c5 {[%clk 0:04:12.9]} 29. Qxf5 {[%clk
0:01:53.7]} 29... Nc4 {[%clk 0:03:54.4]} 30. Ng4 {[%clk 0:01:29.8]} 30... Nxa3
{[%clk 0:02:05.4]} 31. Qg6 {[%clk 0:01:27.9]} 31... Re7 {[%clk 0:01:44.1]} 32.
f5 {[%clk 0:01:00.3]} 32... Qe4 {[%clk 0:01:01.8]} 33. Rg3 {[%clk 0:00:53.7]}
33... Qd5 {[%clk 0:00:35.1]} 34. f6 {[%clk 0:00:49.7]} 34... gxf6 {[%clk
0:00:18.9]} 35. exf6 {[%clk 0:00:40.2]} 35... Rh7 {[%clk 0:00:13.5]} 36. Ne5
{[%clk 0:00:24.9]} 36... Nc4 {[%clk 0:00:13.4]} 37. f7 {[%clk 0:00:22.7]} 37...
Bg7 {[%clk 0:00:10.8]} 38. Nxc4 {[%clk 0:00:13.8]} 38... Qxc4 {[%clk 0:00:11.3]}
39. Re1 {[%clk 0:00:14.5]} 39... Rf8 {[%clk 0:00:06.7]} 40. Re8 {[%clk 0:00:15]}
40... Qe6 {[%clk 0:00:03]} 41. Rxf8+ {[%clk 0:00:14.3]} 1-0

[Event "GrandPrix_29.05"]
[Site "Chess.com"]
[Date "2020.05.29"]
[Round "8"]
[White "ebret"]
[Black "esskeettit"]
[Result "0-1"]
[WhiteElo "1992"]
[BlackElo "2110"]
[TimeControl "600+2"]
[EndTime "13:04:14 PDT"]
[Termination "esskeettit won by resignation"]

1. d4 {[%clk 0:10:01.9]} 1... Nf6 {[%clk 0:10:00.3]} 2. Nf3 {[%clk 0:10:02.9]}
2... e6 {[%clk 0:10:01.3]} 3. Bf4 {[%clk 0:09:55.8]} 3... d5 {[%clk 0:10:01.7]}
4. e3 {[%clk 0:09:55.9]} 4... Bd6 {[%clk 0:09:47.6]} 5. Nbd2 {[%clk 0:09:54.4]}
5... c5 {[%clk 0:09:43.4]} 6. dxc5 {[%clk 0:09:52.3]} 6... Bxc5 {[%clk
0:09:41.1]} 7. c4 {[%clk 0:09:47.2]} 7... Nc6 {[%clk 0:09:31.5]} 8. a3 {[%clk
0:09:46.3]} 8... a6 {[%clk 0:08:59.3]} 9. Be2 {[%clk 0:09:19]} 9... O-O {[%clk
0:08:46.7]} 10. O-O {[%clk 0:09:17.2]} 10... b6 {[%clk 0:08:24.3]} 11. Rc1
{[%clk 0:08:24.4]} 11... Bb7 {[%clk 0:08:23.6]} 12. b4 {[%clk 0:08:04.8]} 12...
Be7 {[%clk 0:08:21.4]} 13. Qb3 {[%clk 0:07:42.5]} 13... dxc4 {[%clk 0:07:50.6]}
14. Nxc4 {[%clk 0:07:39.7]} 14... b5 {[%clk 0:07:42.6]} 15. Nce5 {[%clk
0:07:20.7]} 15... Nxe5 {[%clk 0:07:32.4]} 16. Bxe5 {[%clk 0:07:21.3]} 16... Rc8
{[%clk 0:07:15.5]} 17. Rcd1 {[%clk 0:06:37.2]} 17... Bd5 {[%clk 0:07:13.8]} 18.
Qb2 {[%clk 0:06:35.9]} 18... Qb6 {[%clk 0:07:09.1]} 19. Nd2 {[%clk 0:06:01.5]}
19... Rfd8 {[%clk 0:06:44.8]} 20. Bf3 {[%clk 0:05:48.4]} 20... Bxf3 {[%clk
0:06:37.5]} 21. Nxf3 {[%clk 0:05:50.3]} 21... a5 {[%clk 0:06:06.1]} 22. Bd4
{[%clk 0:05:16]} 22... Qa6 {[%clk 0:05:57.3]} 23. bxa5 {[%clk 0:05:01.6]} 23...
Qxa5 {[%clk 0:05:58.2]} 24. Rb1 {[%clk 0:05:02.8]} 24... Rd5 {[%clk 0:04:59.9]}
25. e4 {[%clk 0:04:35.3]} 25... Nxe4 {[%clk 0:04:18.2]} 26. Bxg7 {[%clk
0:04:28.1]} 26... Qxa3 {[%clk 0:04:19.3]} 27. Qxa3 {[%clk 0:04:18.8]} 27... Bxa3
{[%clk 0:04:21.2]} 28. Bh6 {[%clk 0:04:19.9]} 28... Be7 {[%clk 0:04:02.3]} 29.
Rfd1 {[%clk 0:03:50.9]} 29... Rxd1+ {[%clk 0:03:49.6]} 30. Rxd1 {[%clk
0:03:52.8]} 30... b4 {[%clk 0:03:50.1]} 31. Rd3 {[%clk 0:03:04.7]} 31... Rc3
{[%clk 0:03:05.4]} 32. Rd7 {[%clk 0:02:59]} 32... Bg5 {[%clk 0:02:42.2]} 33.
Bxg5 {[%clk 0:02:37.5]} 33... Nxg5 {[%clk 0:02:40.4]} 34. Ne1 {[%clk 0:02:13.7]}
34... b3 {[%clk 0:02:13.6]} 35. Rb7 {[%clk 0:02:13.6]} 35... Ne4 {[%clk
0:02:10.4]} 36. Kf1 {[%clk 0:02:04.7]} 36... Rc1 {[%clk 0:01:19.8]} 37. Ke2
{[%clk 0:01:55.4]} 37... Nc5 {[%clk 0:01:20.7]} 38. Rb8+ {[%clk 0:01:54.6]}
38... Kg7 {[%clk 0:01:21.5]} 39. Kd2 {[%clk 0:01:47.1]} 39... b2 {[%clk
0:01:08.6]} 40. Rxb2 {[%clk 0:01:30.3]} 40... Rxe1 {[%clk 0:01:09.1]} 41. Rc2
{[%clk 0:01:22.2]} 41... Re5 {[%clk 0:01:07.4]} 42. f4 {[%clk 0:01:18.7]} 42...
Rd5+ {[%clk 0:01:07.9]} 43. Ke3 {[%clk 0:01:20.1]} 43... Nd7 {[%clk 0:01:01.5]}
44. Rc7 {[%clk 0:01:17.1]} 44... Nf6 {[%clk 0:01:02.3]} 45. h3 {[%clk
0:01:18.3]} 45... Ra5 {[%clk 0:00:58.9]} 46. Rc2 {[%clk 0:01:14.5]} 46... Nd5+
{[%clk 0:00:55.1]} 47. Kf3 {[%clk 0:01:14]} 47... Ra3+ {[%clk 0:00:55.3]} 48.
Ke4 {[%clk 0:01:11.6]} 48... Ra4+ {[%clk 0:00:54.6]} 49. Ke5 {[%clk 0:01:12.8]}
49... Rxf4 {[%clk 0:00:50.2]} 50. Rd2 {[%clk 0:01:10.9]} 50... Rf5+ {[%clk
0:00:50]} 51. Kd6 {[%clk 0:01:11.6]} 51... Nf6 {[%clk 0:00:47.4]} 52. Ra2 {[%clk
0:01:09.8]} 52... Ne4+ {[%clk 0:00:45.2]} 53. Ke7 {[%clk 0:01:10.6]} 53... Rf2
{[%clk 0:00:45.7]} 54. Ra4 {[%clk 0:01:09.2]} 54... Nf6 {[%clk 0:00:44.8]} 55.
g4 {[%clk 0:01:09.1]} 55... Nd5+ {[%clk 0:00:45.3]} 56. Ke8 {[%clk 0:01:09.9]}
56... Nf4 {[%clk 0:00:43.3]} 57. h4 {[%clk 0:01:06.7]} 57... Nd5 {[%clk
0:00:44.3]} 58. g5 {[%clk 0:01:04.5]} 58... Rf4 {[%clk 0:00:25.3]} 59. Ra7
{[%clk 0:01:04.6]} 59... Kg6 {[%clk 0:00:26]} 0-1